[Event "Titled Tuesday Blitz May 03 Late 2022"]
[White "Jacobson, Aaron"]
[Black "Reprintsev, Alexander"]
[WhiteFideId "2089912"]
[BlackFideId "14100541"]
[WhiteElo "2265"]
[BlackElo "2108"]
[Result "0-1"]
[Round "11"]
[TimeControl "180+1"]
[Date "2022.05.03"]
[WhiteClock "0:01:51"]
[BlackClock "0:02:10"]

1. e4 {[%clk 0:02:53]}  d5 {[%clk 0:02:55]} 2. Nc3 {[%clk 0:02:51]}  d4 {[%clk 0:02:55]} 3. Nce2 {[%clk 0:02:49]}  c5 {[%clk 0:02:54]} 4. Ng3 {[%clk 0:02:50]}  Qa5 {[%clk 0:02:54]} 5. Bc4 {[%clk 0:02:47]}  Nc6 {[%clk 0:02:54]} 6. Nf3 {[%clk 0:02:47]}  h5 {[%clk 0:02:54]} 7. h3 {[%clk 0:02:39]}  h4 {[%clk 0:02:46]} 8. Ne2 {[%clk 0:02:34]}  e6 {[%clk 0:02:40]} 9. O-O {[%clk 0:02:33]}  b5 {[%clk 0:02:40]} 10. Bd3 {[%clk 0:02:04]}  c4 {[%clk 0:02:39]} 11. Nexd4 {[%clk 0:02:02]}  Nxd4 {[%clk 0:02:39]} 12. Nxd4 {[%clk 0:02:03]}  cxd3 {[%clk 0:02:39]} 13. cxd3 {[%clk 0:02:04]}  Bb7 {[%clk 0:02:23]} 14. a4 {[%clk 0:01:58]}  b4 {[%clk 0:02:20]} 15. Nb3 {[%clk 0:01:53]}  Qa6 {[%clk 0:02:11]} 16. Nc5 {[%clk 0:01:51]}  Bxc5 {[%clk 0:02:10]} 0-1


[Site "https://www.chess.com"]

[Event "Titled Tuesday Blitz May 03 Late 2022"]
[White "Jegorovas, Aleksandras"]
[Black "Mirzoev, Azer"]
[WhiteFideId "12801950"]
[BlackFideId "13400304"]
[WhiteElo "2247"]
[BlackElo "2525"]
[Result "0-1"]
[Round "11"]
[TimeControl "180+1"]
[Date "2022.05.03"]
[WhiteClock "0:00:09"]
[BlackClock "0:00:09"]

1. Nf3 {[%clk 0:03:00]}  c5 {[%clk 0:03:00]} 2. c4 {[%clk 0:03:00]}  g6 {[%clk 0:02:59]} 3. e4 {[%clk 0:02:57]}  Bg7 {[%clk 0:02:58]} 4. d4 {[%clk 0:02:57]}  cxd4 {[%clk 0:02:58]} 5. Nxd4 {[%clk 0:02:57]}  Nc6 {[%clk 0:02:58]} 6. Be3 {[%clk 0:02:55]}  Qb6 {[%clk 0:02:54]} 7. Nb3 {[%clk 0:02:49]}  Qc7 {[%clk 0:02:45]} 8. Nc3 {[%clk 0:02:48]}  Bxc3+ {[%clk 0:02:44]} 9. bxc3 {[%clk 0:02:47]}  Nf6 {[%clk 0:02:43]} 10. f3 {[%clk 0:02:36]}  d6 {[%clk 0:02:41]} 11. Bh6 {[%clk 0:02:30]}  Ne5 {[%clk 0:02:36]} 12. Bg7 {[%clk 0:02:27]}  Rg8 {[%clk 0:02:35]} 13. Bxf6 {[%clk 0:02:27]}  exf6 {[%clk 0:02:36]} 14. Qd4 {[%clk 0:02:05]}  Be6 {[%clk 0:02:34]} 15. c5 {[%clk 0:02:00]}  O-O-O {[%clk 0:02:19]} 16. cxd6 {[%clk 0:01:49]}  Rxd6 {[%clk 0:02:17]} 17. Qxa7 {[%clk 0:01:49]}  Bxb3 {[%clk 0:01:07]} 18. axb3 {[%clk 0:01:48]}  Qxc3+ {[%clk 0:01:07]} 19. Kf2 {[%clk 0:01:48]}  Rd2+ {[%clk 0:00:53]} 20. Kg3 {[%clk 0:01:44]}  Rgd8 {[%clk 0:00:42]} 21. Ba6 {[%clk 0:00:12]}  Qc7 {[%clk 0:00:12]} 22. Rac1 {[%clk 0:00:09]}  Nc6+ {[%clk 0:00:10]} 23. Kh3 {[%clk 0:00:09]}  Nxa7 {[%clk 0:00:09]} 0-1


[Site "https://www.chess.com"]

[Event "Titled Tuesday Blitz May 03 Late 2022"]
[White "Keymer, Vincent"]
[Black "Xiong, Jeffery"]
[WhiteFideId "12940690"]
[BlackFideId "2047640"]
[WhiteElo "2557"]
[BlackElo "2727"]
[Result "0-1"]
[Round "11"]
[TimeControl "180+1"]
[Date "2022.05.03"]
[WhiteClock "0:00:04"]
[BlackClock "0:00:05"]

1. Nf3 {[%clk 0:03:00]}  c5 {[%clk 0:03:00]} 2. c4 {[%clk 0:03:00]}  g6 {[%clk 0:03:00]} 3. d4 {[%clk 0:02:54]}  cxd4 {[%clk 0:03:01]} 4. Nxd4 {[%clk 0:02:55]}  Nc6 {[%clk 0:03:02]} 5. e4 {[%clk 0:02:55]}  Nf6 {[%clk 0:03:02]} 6. Nc3 {[%clk 0:02:54]}  d6 {[%clk 0:03:02]} 7. Be2 {[%clk 0:02:53]}  Nxd4 {[%clk 0:03:02]} 8. Qxd4 {[%clk 0:02:53]}  Bg7 {[%clk 0:03:03]} 9. Be3 {[%clk 0:02:50]}  O-O {[%clk 0:03:03]} 10. Qd3 {[%clk 0:02:51]}  a5 {[%clk 0:03:02]} 11. O-O {[%clk 0:02:48]}  a4 {[%clk 0:03:02]} 12. f4 {[%clk 0:02:44]}  Qa5 {[%clk 0:03:02]} 13. Rac1 {[%clk 0:02:40]}  Bd7 {[%clk 0:02:59]} 14. Bd4 {[%clk 0:02:28]}  Bc6 {[%clk 0:03:00]} 15. a3 {[%clk 0:02:06]}  Rac8 {[%clk 0:02:59]} 16. Qe3 {[%clk 0:01:56]}  Nd7 {[%clk 0:02:57]} 17. Bxg7 {[%clk 0:01:53]}  Kxg7 {[%clk 0:02:58]} 18. Rfd1 {[%clk 0:01:53]}  Qc5 {[%clk 0:02:55]} 19. Kf2 {[%clk 0:01:50]}  f5 {[%clk 0:02:52]} 20. Qxc5 {[%clk 0:01:35]}  Nxc5 {[%clk 0:02:52]} 21. e5 {[%clk 0:01:36]}  dxe5 {[%clk 0:02:46]} 22. fxe5 {[%clk 0:01:37]}  Rcd8 {[%clk 0:02:42]} 23. Rxd8 {[%clk 0:01:30]}  Rxd8 {[%clk 0:02:43]} 24. Ke3 {[%clk 0:01:15]}  Bxg2 {[%clk 0:02:38]} 25. Rd1 {[%clk 0:01:16]}  Rxd1 {[%clk 0:02:35]} 26. Bxd1 {[%clk 0:01:16]}  Bc6 {[%clk 0:02:35]} 27. Kd4 {[%clk 0:01:16]}  Ne6+ {[%clk 0:02:34]} 28. Ke3 {[%clk 0:01:04]}  f4+ {[%clk 0:02:33]} 29. Kd3 {[%clk 0:00:52]}  Nc5+ {[%clk 0:02:34]} 30. Kd4 {[%clk 0:00:52]}  Ne6+ {[%clk 0:02:22]} 31. Kd3 {[%clk 0:00:52]}  Kf7 {[%clk 0:02:14]} 32. Nd5 {[%clk 0:00:44]}  h5 {[%clk 0:01:35]} 33. Kc3 {[%clk 0:00:37]}  Ke8 {[%clk 0:01:21]} 34. Bc2 {[%clk 0:00:34]}  Kf7 {[%clk 0:01:14]} 35. Bd1 {[%clk 0:00:34]}  b5 {[%clk 0:00:44]} 36. Nb4 {[%clk 0:00:34]}  Bd7 {[%clk 0:00:43]} 37. Be2 {[%clk 0:00:35]}  Nc7 {[%clk 0:00:41]} 38. c5 {[%clk 0:00:31]}  Bg4 {[%clk 0:00:40]} 39. Bf1 {[%clk 0:00:27]}  Bf3 {[%clk 0:00:39]} 40. h4 {[%clk 0:00:23]}  g5 {[%clk 0:00:37]} 41. hxg5 {[%clk 0:00:16]}  Kg6 {[%clk 0:00:38]} 42. Nd3 {[%clk 0:00:13]}  Kxg5 {[%clk 0:00:38]} 43. Bh3 {[%clk 0:00:14]}  Bg4 {[%clk 0:00:36]} 44. Bf1 {[%clk 0:00:13]}  h4 {[%clk 0:00:34]} 45. Nf2 {[%clk 0:00:14]}  Bf5 {[%clk 0:00:32]} 46. c6 {[%clk 0:00:11]}  f3 {[%clk 0:00:31]} 47. Kd4 {[%clk 0:00:11]}  Kf4 {[%clk 0:00:32]} 48. Kc5 {[%clk 0:00:09]}  Kg3 {[%clk 0:00:23]} 49. Nd1 {[%clk 0:00:10]}  h3 {[%clk 0:00:23]} 50. Bxh3 {[%clk 0:00:07]}  Bxh3 {[%clk 0:00:23]} 51. Kb6 {[%clk 0:00:07]}  Nd5+ {[%clk 0:00:15]} 52. Kc5 {[%clk 0:00:05]}  Be6 {[%clk 0:00:11]} 53. Kxb5 {[%clk 0:00:05]}  Bf5 {[%clk 0:00:07]} 54. Kc5 {[%clk 0:00:03]}  e6 {[%clk 0:00:07]} 55. Kd6 {[%clk 0:00:01]}  Bc2 {[%clk 0:00:02]} 56. Ne3 {[%clk 0:00:01]}  Nxe3 {[%clk 0:00:02]} 57. c7 {[%clk 0:00:02]}  f2 {[%clk 0:00:03]} 58. c8=Q {[%clk 0:00:02]}  f1=Q {[%clk 0:00:04]} 59. Qg8+ {[%clk 0:00:03]}  Kf2 {[%clk 0:00:04]} 60. Qxe6 {[%clk 0:00:04]}  Qa6+ {[%clk 0:00:03]} 61. Ke7 {[%clk 0:00:04]}  Nf5+ {[%clk 0:00:03]} 62. Kf6 {[%clk 0:00:04]}  Qb7 {[%clk 0:00:03]} 63. Qc4 {[%clk 0:00:03]}  Qg7+ {[%clk 0:00:03]} 64. Ke6 {[%clk 0:00:04]}  Qe7+ {[%clk 0:00:04]} 65. Kd5 {[%clk 0:00:04]}  Bb3 {[%clk 0:00:05]} 0-1


[Site "https://www.chess.com"]

[Event "Titled Tuesday Blitz May 03 Late 2022"]
[White "Lehtosaari, Mauri"]
[Black "Rustemov, Alexander"]
[WhiteFideId "501999"]
[BlackFideId "4119002"]
[WhiteElo "2518"]
[BlackElo "2724"]
[Result "0-1"]
[Round "11"]
[TimeControl "180+1"]
[Date "2022.05.03"]
[WhiteClock "0:00:17"]
[BlackClock "0:01:16"]

1. d4 {[%clk 0:03:00]}  d5 {[%clk 0:02:58]} 2. Nf3 {[%clk 0:03:01]}  Nf6 {[%clk 0:02:57]} 3. Bg5 {[%clk 0:03:01]}  Ne4 {[%clk 0:02:56]} 4. Bf4 {[%clk 0:03:02]}  c5 {[%clk 0:02:56]} 5. e3 {[%clk 0:03:02]}  Qb6 {[%clk 0:02:54]} 6. Nc3 {[%clk 0:02:59]}  Nxc3 {[%clk 0:02:51]} 7. bxc3 {[%clk 0:02:59]}  Qa5 {[%clk 0:02:44]} 8. Qd2 {[%clk 0:02:53]}  e6 {[%clk 0:02:25]} 9. a4 {[%clk 0:02:48]}  c4 {[%clk 0:02:17]} 10. e4 {[%clk 0:02:18]}  Nc6 {[%clk 0:02:11]} 11. Be2 {[%clk 0:02:03]}  Be7 {[%clk 0:02:10]} 12. e5 {[%clk 0:02:00]}  h6 {[%clk 0:02:01]} 13. h4 {[%clk 0:01:54]}  Bd7 {[%clk 0:02:00]} 14. h5 {[%clk 0:01:46]}  b5 {[%clk 0:01:55]} 15. O-O {[%clk 0:01:42]}  bxa4 {[%clk 0:01:54]} 16. Rfb1 {[%clk 0:01:40]}  Kd8 {[%clk 0:01:50]} 17. g4 {[%clk 0:01:02]}  Kc7 {[%clk 0:01:49]} 18. Ne1 {[%clk 0:00:54]}  Rab8 {[%clk 0:01:48]} 19. Ng2 {[%clk 0:00:49]}  Rxb1+ {[%clk 0:01:47]} 20. Rxb1 {[%clk 0:00:50]}  a3 {[%clk 0:01:47]} 21. Ne3 {[%clk 0:00:48]}  Rb8 {[%clk 0:01:46]} 22. Ra1 {[%clk 0:00:48]}  a2 {[%clk 0:01:43]} 23. Qd1 {[%clk 0:00:35]}  Rb2 {[%clk 0:01:41]} 24. Nxd5+ {[%clk 0:00:30]}  exd5 {[%clk 0:01:39]} 25. e6+ {[%clk 0:00:30]}  Bd6 {[%clk 0:01:37]} 26. Bxd6+ {[%clk 0:00:30]}  Kxd6 {[%clk 0:01:37]} 27. exd7 {[%clk 0:00:30]}  Qxc3 {[%clk 0:01:27]} 28. Qc1 {[%clk 0:00:23]}  Kxd7 {[%clk 0:01:24]} 29. g5 {[%clk 0:00:19]}  Qxc2 {[%clk 0:01:22]} 30. Bg4+ {[%clk 0:00:18]}  Kc7 {[%clk 0:01:18]} 31. Qf4+ {[%clk 0:00:18]}  Kb6 {[%clk 0:01:19]} 32. Qd6 {[%clk 0:00:17]}  Qxf2+ {[%clk 0:01:16]} 0-1


[Site "https://www.chess.com"]

[Event "Titled Tuesday Blitz May 03 Late 2022"]
[White "Leiva, Gianmarco"]
[Black "Fishbein, Alexander"]
[WhiteFideId "3804399"]
[BlackFideId "2000377"]
[WhiteElo "2323"]
[BlackElo "2442"]
[Result "1-0"]
[Round "11"]
[TimeControl "180+1"]
[Date "2022.05.03"]
[WhiteClock "0:00:09"]
[BlackClock "0:00:16"]

1. Nf3 {[%clk 0:02:51]}  Nf6 {[%clk 0:02:59]} 2. g3 {[%clk 0:02:51]}  g6 {[%clk 0:02:59]} 3. Bg2 {[%clk 0:02:50]}  Bg7 {[%clk 0:03:00]} 4. O-O {[%clk 0:02:50]}  O-O {[%clk 0:03:00]} 5. d3 {[%clk 0:02:51]}  d6 {[%clk 0:03:00]} 6. Nc3 {[%clk 0:02:52]}  Nc6 {[%clk 0:02:59]} 7. e4 {[%clk 0:02:51]}  e5 {[%clk 0:02:59]} 8. h3 {[%clk 0:02:50]}  Be6 {[%clk 0:02:56]} 9. Ng5 {[%clk 0:02:51]}  Bd7 {[%clk 0:02:53]} 10. f4 {[%clk 0:02:51]}  exf4 {[%clk 0:02:53]} 11. Bxf4 {[%clk 0:02:51]}  Nh5 {[%clk 0:02:52]} 12. Nf3 {[%clk 0:02:29]}  Nxf4 {[%clk 0:02:52]} 13. gxf4 {[%clk 0:02:29]}  Nd4 {[%clk 0:02:52]} 14. Ne2 {[%clk 0:02:27]}  Nxf3+ {[%clk 0:02:51]} 15. Rxf3 {[%clk 0:02:28]}  Bxb2 {[%clk 0:02:50]} 16. Rb1 {[%clk 0:02:28]}  Ba3 {[%clk 0:02:47]} 17. d4 {[%clk 0:02:23]}  d5 {[%clk 0:02:06]} 18. Rxa3 {[%clk 0:02:19]}  dxe4 {[%clk 0:02:06]} 19. Bxe4 {[%clk 0:02:10]}  Qe7 {[%clk 0:01:59]} 20. Qd3 {[%clk 0:02:00]}  Rae8 {[%clk 0:01:55]} 21. Bf3 {[%clk 0:01:05]}  Bf5 {[%clk 0:01:55]} 22. Qc3 {[%clk 0:01:00]}  Qh4 {[%clk 0:01:48]} 23. Rf1 {[%clk 0:00:14]}  Bxh3 {[%clk 0:01:44]} 24. Rf2 {[%clk 0:00:15]}  Bg4 {[%clk 0:01:41]} 25. Bxg4 {[%clk 0:00:13]}  Qxg4+ {[%clk 0:01:41]} 26. Qg3 {[%clk 0:00:12]}  Qd7 {[%clk 0:01:37]} 27. f5 {[%clk 0:00:10]}  c5 {[%clk 0:01:30]} 28. Rd3 {[%clk 0:00:06]}  c4 {[%clk 0:01:27]} 29. Rdf3 {[%clk 0:00:06]}  Re4 {[%clk 0:01:19]} 30. Nf4 {[%clk 0:00:03]}  Qxf5 {[%clk 0:01:14]} 31. c3 {[%clk 0:00:03]}  Rfe8 {[%clk 0:01:07]} 32. Kh2 {[%clk 0:00:03]}  Kh8 {[%clk 0:00:53]} 33. Nh3 {[%clk 0:00:04]}  Qg4 {[%clk 0:00:51]} 34. Rxf7 {[%clk 0:00:03]}  Qxg3+ {[%clk 0:00:50]} 35. Kxg3 {[%clk 0:00:03]}  R4e7 {[%clk 0:00:48]} 36. Ng5 {[%clk 0:00:03]}  Kg8 {[%clk 0:00:46]} 37. Rxe7 {[%clk 0:00:02]}  Rxe7 {[%clk 0:00:46]} 38. Nf3 {[%clk 0:00:02]}  Re3 {[%clk 0:00:45]} 39. Rc2 {[%clk 0:00:03]}  g5 {[%clk 0:00:42]} 40. Kf2 {[%clk 0:00:03]}  Re7 {[%clk 0:00:40]} 41. Nxg5 {[%clk 0:00:03]}  Kg7 {[%clk 0:00:40]} 42. Nf3 {[%clk 0:00:03]}  b5 {[%clk 0:00:38]} 43. Ne5 {[%clk 0:00:03]}  h5 {[%clk 0:00:36]} 44. a4 {[%clk 0:00:03]}  a6 {[%clk 0:00:32]} 45. axb5 {[%clk 0:00:03]}  axb5 {[%clk 0:00:32]} 46. Rb2 {[%clk 0:00:04]}  Rb7 {[%clk 0:00:32]} 47. Ke3 {[%clk 0:00:04]}  Kf6 {[%clk 0:00:30]} 48. Ke4 {[%clk 0:00:04]}  h4 {[%clk 0:00:30]} 49. Nxc4 {[%clk 0:00:02]}  Rh7 {[%clk 0:00:28]} 50. Ne5 {[%clk 0:00:02]}  h3 {[%clk 0:00:28]} 51. Rxb5 {[%clk 0:00:02]}  Kg5 {[%clk 0:00:24]} 52. Nf3+ {[%clk 0:00:02]}  Kg6 {[%clk 0:00:23]} 53. Rg5+ {[%clk 0:00:03]}  Kf6 {[%clk 0:00:23]} 54. Rg1 {[%clk 0:00:03]}  h2 {[%clk 0:00:21]} 55. Rh1 {[%clk 0:00:04]}  Rc7 {[%clk 0:00:21]} 56. Kd3 {[%clk 0:00:03]}  Kf5 {[%clk 0:00:20]} 57. Rxh2 {[%clk 0:00:04]}  Kf4 {[%clk 0:00:20]} 58. Ne5 {[%clk 0:00:05]}  Ra7 {[%clk 0:00:18]} 59. Rb2 {[%clk 0:00:05]}  Rh7 {[%clk 0:00:18]} 60. Rb8 {[%clk 0:00:06]}  Rh3+ {[%clk 0:00:17]} 61. Kc4 {[%clk 0:00:06]}  Ke4 {[%clk 0:00:18]} 62. Re8 {[%clk 0:00:07]}  Rh1 {[%clk 0:00:17]} 63. Nd3+ {[%clk 0:00:07]}  Kf5 {[%clk 0:00:18]} 64. Kd5 {[%clk 0:00:07]}  Rd1 {[%clk 0:00:17]} 65. Rf8+ {[%clk 0:00:07]}  Kg5 {[%clk 0:00:16]} 66. Ne5 {[%clk 0:00:08]}  Rc1 {[%clk 0:00:16]} 67. c4 {[%clk 0:00:09]} 1-0


[Site "https://www.chess.com"]

[Event "Titled Tuesday Blitz May 03 Late 2022"]
[White "Maksimovic, Bojan"]
[Black "Vasquez Schroeder, Rodrigo"]
[WhiteFideId "14408120"]
[BlackFideId "3400042"]
[WhiteElo "2448"]
[BlackElo "2561"]
[Result "1-0"]
[Round "11"]
[TimeControl "180+1"]
[Date "2022.05.03"]
[WhiteClock "0:00:37"]
[BlackClock "0:01:01"]

1. e4 {[%clk 0:03:00]}  c5 {[%clk 0:03:00]} 2. Nf3 {[%clk 0:03:01]}  d6 {[%clk 0:03:00]} 3. d4 {[%clk 0:03:01]}  cxd4 {[%clk 0:03:00]} 4. Nxd4 {[%clk 0:03:02]}  Nf6 {[%clk 0:02:59]} 5. Nc3 {[%clk 0:03:03]}  a6 {[%clk 0:03:00]} 6. Bg5 {[%clk 0:03:03]}  e6 {[%clk 0:03:00]} 7. f4 {[%clk 0:03:02]}  Nbd7 {[%clk 0:03:00]} 8. Qe2 {[%clk 0:03:02]}  Qc7 {[%clk 0:03:00]} 9. O-O-O {[%clk 0:03:03]}  b5 {[%clk 0:03:00]} 10. a3 {[%clk 0:03:03]}  Be7 {[%clk 0:02:55]} 11. Rg1 {[%clk 0:02:46]}  h6 {[%clk 0:02:44]} 12. Bh4 {[%clk 0:02:46]}  Bb7 {[%clk 0:02:26]} 13. g4 {[%clk 0:02:10]}  g5 {[%clk 0:02:10]} 14. fxg5 {[%clk 0:02:11]}  Nh7 {[%clk 0:02:10]} 15. Bg3 {[%clk 0:02:09]}  hxg5 {[%clk 0:02:07]} 16. Nf3 {[%clk 0:01:31]}  Nhf8 {[%clk 0:01:55]} 17. e5 {[%clk 0:01:25]}  d5 {[%clk 0:01:50]} 18. Nxd5 {[%clk 0:01:22]}  Bxd5 {[%clk 0:01:45]} 19. Rxd5 {[%clk 0:01:22]}  exd5 {[%clk 0:01:13]} 20. e6 {[%clk 0:01:22]}  Bd6 {[%clk 0:01:12]} 21. Nxg5 {[%clk 0:00:39]}  Bxg3 {[%clk 0:01:01]} 22. exf7+ {[%clk 0:00:37]} 1-0


[Site "https://www.chess.com"]

[Event "Titled Tuesday Blitz May 03 Late 2022"]
[White "Martinez Alcantara, Jose Eduardo"]
[Black "Nakamura, Hikaru"]
[WhiteFideId "3805662"]
[BlackFideId "2016192"]
[WhiteElo "2690"]
[BlackElo "2850"]
[Result "0-1"]
[Round "11"]
[TimeControl "180+1"]
[Date "2022.05.03"]
[WhiteClock "0:00:03"]
[BlackClock "0:00:13"]

1. e4 {[%clk 0:03:00]}  c5 {[%clk 0:02:57]} 2. Nf3 {[%clk 0:03:01]}  e6 {[%clk 0:02:57]} 3. c3 {[%clk 0:03:01]}  d5 {[%clk 0:02:57]} 4. exd5 {[%clk 0:03:02]}  Qxd5 {[%clk 0:02:58]} 5. d4 {[%clk 0:03:02]}  Nf6 {[%clk 0:02:58]} 6. Be3 {[%clk 0:03:03]}  cxd4 {[%clk 0:02:58]} 7. cxd4 {[%clk 0:03:03]}  Be7 {[%clk 0:02:56]} 8. Nc3 {[%clk 0:03:04]}  Qd8 {[%clk 0:02:57]} 9. Bc4 {[%clk 0:03:02]}  b6 {[%clk 0:02:51]} 10. d5 {[%clk 0:02:53]}  exd5 {[%clk 0:02:27]} 11. Nxd5 {[%clk 0:02:53]}  Bb7 {[%clk 0:02:27]} 12. Nxf6+ {[%clk 0:02:46]}  Bxf6 {[%clk 0:02:27]} 13. Qxd8+ {[%clk 0:02:46]}  Bxd8 {[%clk 0:02:26]} 14. Bb5+ {[%clk 0:02:03]}  Bc6 {[%clk 0:02:12]} 15. Nd4 {[%clk 0:02:00]}  Bxb5 {[%clk 0:02:11]} 16. Nxb5 {[%clk 0:02:01]}  O-O {[%clk 0:02:09]} 17. O-O-O {[%clk 0:02:01]}  Nc6 {[%clk 0:02:09]} 18. Kb1 {[%clk 0:01:59]}  Bf6 {[%clk 0:02:05]} 19. Rd7 {[%clk 0:01:48]}  a6 {[%clk 0:02:01]} 20. Nc7 {[%clk 0:01:16]}  Ra7 {[%clk 0:01:59]} 21. Rc1 {[%clk 0:01:15]}  Ne5 {[%clk 0:01:52]} 22. Rd6 {[%clk 0:01:02]}  Ng4 {[%clk 0:01:53]} 23. Bxb6 {[%clk 0:01:01]}  Rb7 {[%clk 0:01:53]} 24. Rc2 {[%clk 0:00:51]}  Be5 {[%clk 0:01:14]} 25. Rdc6 {[%clk 0:00:43]}  Bxh2 {[%clk 0:01:14]} 26. Nd5 {[%clk 0:00:25]}  Rd7 {[%clk 0:01:09]} 27. Ne3 {[%clk 0:00:24]}  Nf6 {[%clk 0:00:58]} 28. Rc8 {[%clk 0:00:23]}  g6 {[%clk 0:00:46]} 29. a4 {[%clk 0:00:23]}  h5 {[%clk 0:00:44]} 30. a5 {[%clk 0:00:22]}  h4 {[%clk 0:00:42]} 31. R8c4 {[%clk 0:00:22]}  g5 {[%clk 0:00:40]} 32. Ka2 {[%clk 0:00:19]}  Bf4 {[%clk 0:00:38]} 33. Nf5 {[%clk 0:00:17]}  Nd5 {[%clk 0:00:35]} 34. Bc5 {[%clk 0:00:13]}  Re8 {[%clk 0:00:35]} 35. b4 {[%clk 0:00:13]}  Kh7 {[%clk 0:00:30]} 36. g3 {[%clk 0:00:13]}  hxg3 {[%clk 0:00:22]} 37. fxg3 {[%clk 0:00:14]}  Be5 {[%clk 0:00:22]} 38. g4 {[%clk 0:00:14]}  Kg6 {[%clk 0:00:22]} 39. Kb3 {[%clk 0:00:13]}  Nf6 {[%clk 0:00:21]} 40. Rg2 {[%clk 0:00:12]}  Bf4 {[%clk 0:00:19]} 41. Nd4 {[%clk 0:00:06]}  Ne4 {[%clk 0:00:18]} 42. Ka4 {[%clk 0:00:04]}  Nxc5+ {[%clk 0:00:16]} 43. Rxc5 {[%clk 0:00:03]}  Rxd4 {[%clk 0:00:16]} 44. Rc6+ {[%clk 0:00:04]}  f6 {[%clk 0:00:16]} 45. Rxa6 {[%clk 0:00:04]}  Rb8 {[%clk 0:00:15]} 46. Rb2 {[%clk 0:00:04]}  Bd6 {[%clk 0:00:15]} 47. Rb6 {[%clk 0:00:05]}  Rxb6 {[%clk 0:00:14]} 48. axb6 {[%clk 0:00:05]}  Rxg4 {[%clk 0:00:15]} 49. Kb5 {[%clk 0:00:06]}  Rd4 {[%clk 0:00:15]} 50. Kc6 {[%clk 0:00:06]}  Bxb4 {[%clk 0:00:14]} 51. b7 {[%clk 0:00:02]}  Bd6 {[%clk 0:00:14]} 52. Kb6 {[%clk 0:00:01]}  Be5 {[%clk 0:00:13]} 53. Rc2 {[%clk 0:00:02]}  Rb4+ {[%clk 0:00:13]} 54. Kc6 {[%clk 0:00:02]}  g4 {[%clk 0:00:13]} 55. Rc5 {[%clk 0:00:03]}  g3 {[%clk 0:00:13]} 0-1


[Site "https://www.chess.com"]

[Event "Titled Tuesday Blitz May 03 Late 2022"]
[White "Mikhailov, Viacheslav"]
[Black "Koellner, Ruben Gideon"]
[WhiteFideId "4187369"]
[BlackFideId "12993093"]
[WhiteElo "2381"]
[BlackElo "2621"]
[Result "1-0"]
[Round "11"]
[TimeControl "180+1"]
[Date "2022.05.03"]
[WhiteClock "0:00:27"]
[BlackClock "0:00:03"]

1. Nf3 {[%clk 0:03:00]}  c5 {[%clk 0:02:57]} 2. g3 {[%clk 0:02:59]}  g6 {[%clk 0:02:55]} 3. Bg2 {[%clk 0:02:59]}  Bg7 {[%clk 0:02:55]} 4. d4 {[%clk 0:03:00]}  cxd4 {[%clk 0:02:55]} 5. Nxd4 {[%clk 0:03:01]}  Nc6 {[%clk 0:02:55]} 6. Nxc6 {[%clk 0:03:01]}  bxc6 {[%clk 0:02:54]} 7. O-O {[%clk 0:03:01]}  Nf6 {[%clk 0:02:54]} 8. c4 {[%clk 0:03:01]}  O-O {[%clk 0:02:54]} 9. Nc3 {[%clk 0:03:02]}  Qc7 {[%clk 0:02:48]} 10. b3 {[%clk 0:03:01]}  d6 {[%clk 0:02:46]} 11. Bb2 {[%clk 0:03:00]}  Be6 {[%clk 0:02:46]} 12. Rc1 {[%clk 0:03:00]}  a5 {[%clk 0:02:43]} 13. Qd2 {[%clk 0:02:58]}  Rfb8 {[%clk 0:02:42]} 14. Rfd1 {[%clk 0:02:49]}  Qb7 {[%clk 0:02:33]} 15. c5 {[%clk 0:02:41]}  d5 {[%clk 0:02:31]} 16. e4 {[%clk 0:02:36]}  Rd8 {[%clk 0:02:26]} 17. exd5 {[%clk 0:02:34]}  Nxd5 {[%clk 0:01:47]} 18. Nxd5 {[%clk 0:02:27]}  Bxd5 {[%clk 0:01:47]} 19. Bxg7 {[%clk 0:02:26]}  Kxg7 {[%clk 0:01:38]} 20. Bxd5 {[%clk 0:02:23]}  Rxd5 {[%clk 0:01:33]} 21. Qc3+ {[%clk 0:02:19]}  Kg8 {[%clk 0:01:33]} 22. Rxd5 {[%clk 0:02:19]}  cxd5 {[%clk 0:01:34]} 23. c6 {[%clk 0:02:19]}  Qc7 {[%clk 0:01:34]} 24. h4 {[%clk 0:02:19]}  h5 {[%clk 0:01:31]} 25. a3 {[%clk 0:02:19]}  Rd8 {[%clk 0:01:15]} 26. b4 {[%clk 0:01:51]}  axb4 {[%clk 0:01:15]} 27. axb4 {[%clk 0:01:52]}  d4 {[%clk 0:01:15]} 28. Qc5 {[%clk 0:01:53]}  d3 {[%clk 0:00:44]} 29. b5 {[%clk 0:01:53]}  d2 {[%clk 0:00:32]} 30. Rd1 {[%clk 0:01:52]}  Rd6 {[%clk 0:00:26]} 31. Qc3 {[%clk 0:01:25]}  Qd8 {[%clk 0:00:25]} 32. Kh2 {[%clk 0:01:10]}  e5 {[%clk 0:00:14]} 33. c7 {[%clk 0:00:53]}  Qc8 {[%clk 0:00:11]} 34. b6 {[%clk 0:00:52]}  Rxb6 {[%clk 0:00:03]} 35. Rxd2 {[%clk 0:00:50]}  Kg7 {[%clk 0:00:04]} 36. Qxe5+ {[%clk 0:00:31]}  f6 {[%clk 0:00:03]} 37. Qe7+ {[%clk 0:00:27]}  Kh6 {[%clk 0:00:03]} 38. Qe3+ {[%clk 0:00:27]} 1-0


[Site "https://www.chess.com"]